{"text_format":"1","workbook":"xlsx","n_sheets":3,"sheets":["アンケート","集計表","グラフ計算シート"],"not_rendered":{"charts":0,"images":0,"macros":1,"external_links":0,"defined_names":1,"comments":1,"pivot_tables":0},"unopened":[],"bounds":{"document_bytes":16777216,"sheet_cells":100000,"rows_first":2000,"rows_last":500,"rows_between":2000,"halvings":0,"cell_chars":16384,"cell_head_chars":4096},"cells_cut":0,"cells_raw":0,"read":"whole","date_system":"1900"}

{"sheet":"アンケート","index":0,"n_rows":124,"n_cols":27,"rows_kept":124,"cut":false,"hidden":false,"merged":[[1,0,2,23],[3,1,3,23],[4,1,4,23],[13,0,13,23],[70,2,72,18],[27,1,27,5],[27,6,27,21],[29,0,29,23],[21,6,21,21],[15,6,15,21],[16,6,16,21],[17,6,17,21],[22,1,22,5],[23,1,23,5],[25,1,25,5],[26,1,26,5],[15,1,15,5],[16,1,16,5],[17,1,17,5],[18,1,18,5],[19,1,19,5],[21,1,21,5],[122,19,123,23],[114,2,120,18],[105,2,111,18],[18,6,18,21],[19,6,19,21],[32,1,35,22],[24,1,24,5],[24,6,24,21],[91,2,93,18],[26,16,26,21],[22,6,22,21],[23,6,23,21],[25,6,25,21],[26,8,26,13]]}
[null,null,null,null,null,null,null,null,null,null,null,null,null,null,null,null,null,null,null,null,null,null,null,"R04.06版"]
["CIM活用業務のアンケート調査（受注者用）"]
[]
["○","広島県では，建設現場における生産性向上のため，CIM活用業務の試行を行っています。"]
["○","つきましては，お手数をおかけしますが，対象工事の受注者の方はアンケート調査にご協力をお願いします。"]
["【回答対象業務】"]
["○","「CIM活用業務（発注者指定型）」，「CIM活用業務（受注者希望型）」を対象とします。"]
["○","なお，「土工の３次元設計業務」は対象外とします。"]
["【回答対象者】"]
["○","「管理技術者」とします。"]
["【提出方法】"]
["○","メールで土木建築局建設DX担当に提出してください。"]
[null,"建設DX担当メールアドレス　：　",null,null,null,null,null,"kensetsudx@pref.hiroshima.lg.jp"]
["□基本情報を入力してください。"]
["1　受注者情報"]
[null,"会社名"]
[null,"回答者"]
[null,"役職"]
[null,"電話番号"]
[null,"メールアドレス"]
["2　業務情報"]
[null,"発注事務所"]
[null,"施行番号"]
[null,"業務名"]
[null,"発注形式",null,null,null,null,null,null,null,null,null,null,null,null,null,null,null,null,null,null,null,null,null,null,null,"発注者指定型"]
[null,"施工場所",null,null,null,null,null,null,null,null,null,null,null,null,null,null,null,null,null,null,null,null,null,null,null,"受注者希望型"]
[null,"工期",null,null,null,null,"始期日",null,null,null,null,null,null,null,"終期日"]
[null,"最終契約金額（税込）"]
[]
["□質問の回答を入力してください。"]
["問１",null,"CIMモデルを作成した対象構造物をお答えください。"]
[]
[null,null,null,null,null,null,null,null,null,null,null,null,null,null,null,null,null,null,null,null,null,null,null,null,null,{"$f":"IF(B33=\"\",FALSE,TRUE)","v":false}]
[]
[]
[]
[null,{"$f":"IF(AA37=0,\"未回答\",IF(AA37>=2,\"エラー！！※選択は１つまで※\",\"\"))","v":"未回答"},null,null,null,null,null,null,null,null,null,null,null,null,null,null,null,null,null,null,null,null,null,null,{"$f":"+IF(B37=\"\",\"回答済\",IF(B37=\"回答不要\",\"回答済\",\"未回答あり\"))","v":"未回答あり"},null,{"$f":"COUNTIF(Z29:Z36,TRUE)","v":0}]
["問２",null,"業務種別を教えてください（代表的なものを１つ選択）"]
[null,null,"詳細設計業務",null,null,null,null,null,null,null,null,null,null,null,null,null,null,null,null,null,null,null,null,null,null,false]
[null,null,"概略設計業務",null,null,null,null,null,null,null,null,null,null,null,null,null,null,null,null,null,null,null,null,null,null,false]
[null,null,"予備設計業務",null,null,null,null,null,null,null,null,null,null,null,null,null,null,null,null,null,null,null,null,null,null,false]
[null,{"$f":"IF(AA42=0,\"未回答\",IF(AA42>=2,\"エラー！！※選択は１つまで※\",\"\"))","v":"未回答"},null,null,null,null,null,null,null,null,null,null,null,null,null,null,null,null,null,null,null,null,null,null,{"$f":"+IF(B42=\"\",\"回答済\",\"未回答あり\")","v":"未回答あり"},null,{"$f":"COUNTIF(Z39:Z41,TRUE)","v":0}]
["問３",null,"作成したデータモデル（CIMモデル）について選択してください。（複数回答可）"]
[null,null,"地形モデル",null,null,null,null,null,null,null,null,null,null,null,null,null,null,null,null,null,null,null,null,null,null,false]
[null,null,"土工形状モデル",null,null,null,null,null,null,null,null,null,null,null,null,null,null,null,null,null,null,null,null,null,null,false]
[null,null,"構造物モデル",null,null,null,null,null,null,null,null,null,null,null,null,null,null,null,null,null,null,null,null,null,null,false]
[null,null,"統合モデル",null,null,null,null,null,null,null,null,null,null,null,null,null,null,null,null,null,null,null,null,null,null,false]
[null,{"$f":"IF(AA48=0,\"未回答\",IF(AA48>=5,\"エラー！！※選択は１つまで※\",\"\"))","v":"未回答"},null,null,null,null,null,null,null,null,null,null,null,null,null,null,null,null,null,null,null,null,null,null,{"$f":"+IF(B48=\"\",\"回答済\",\"未回答あり\")","v":"未回答あり"},null,{"$f":"COUNTIF(Z44:Z47,TRUE)","v":0}]
["問４",null,"CIMモデル作成に要した費用について選択してください。（一択）"]
[null,null,"100万円未満",null,null,null,null,null,null,null,null,null,null,null,null,null,null,null,null,null,null,null,null,null,null,false]
[null,null,"100万円以上～200万円未満",null,null,null,null,null,null,null,null,null,null,null,null,null,null,null,null,null,null,null,null,null,null,false]
[null,null,"200万円以上～300万円未満",null,null,null,null,null,null,null,null,null,null,null,null,null,null,null,null,null,null,null,null,null,null,false]
[null,null,"300万円以上～500万円未満",null,null,null,null,null,null,null,null,null,null,null,null,null,null,null,null,null,null,null,null,null,null,false]
[null,null,"500万円以上～1,000万円未満",null,null,null,null,null,null,null,null,null,null,null,null,null,null,null,null,null,null,null,null,null,null,false]
[null,null,"1,000万円以上～2,000万円未満",null,null,null,null,null,null,null,null,null,null,null,null,null,null,null,null,null,null,null,null,null,null,false]
[null,null,"2,000万円以上",null,null,null,null,null,null,null,null,null,null,null,null,null,null,null,null,null,null,null,null,null,null,false]
[null,{"$f":"IF(AA57=0,\"未回答\",IF(AA57>=2,\"エラー！！※選択は１つまで※\",\"\"))","v":"未回答"},null,null,null,null,null,null,null,null,null,null,null,null,null,null,null,null,null,null,null,null,null,null,{"$f":"+IF(B57=\"\",\"回答済\",IF(B57=\"回答不要\",\"回答済\",\"未回答あり\"))","v":"未回答あり"},null,{"$f":"COUNTIF(Z50:Z56,TRUE)","v":0}]
["問５",null,"CIMモデルを活用した検討（リクワイヤメント）を実施したか否かを選択してください。（一択）"]
[null,null,"実施した",null,null,null,null,null,null,null,null,"→問６へ",null,null,null,null,null,null,null,null,null,null,null,null,null,false]
[null,null,"実施しなかった",null,null,null,null,null,null,null,null,"→問８へ",null,null,null,null,null,null,null,null,null,null,null,null,null,false]
[null,{"$f":"IF(AA61=0,\"未回答\",IF(AA61>=2,\"エラー！！※選択は１つまで※\",\"\"))","v":"未回答"},null,null,null,null,null,null,null,null,null,null,null,null,null,null,null,null,null,null,null,null,null,null,{"$f":"+IF(B61=\"\",\"回答済\",\"未回答あり\")","v":"未回答あり"},null,{"$f":"COUNTIF(Z59:Z60,TRUE)","v":0}]
["問６",null,"CIMモデルを活用した検討（リクワイヤメント）の実施項目を選択してください。（複数回答可）"]
[null,null,"設計選択肢の調査（配置計画案の比較）",null,null,null,null,null,null,null,null,null,null,null,null,null,null,null,null,null,null,null,null,null,null,false]
[null,null,"リスクに関するシミュレーション（地質，騒音，浸水等）",null,null,null,null,null,null,null,null,null,null,null,null,null,null,null,null,null,null,null,null,null,null,false]
[null,null,"対外説明（関係者協議，住民説明，広報等）",null,null,null,null,null,null,null,null,null,null,null,null,null,null,null,null,null,null,null,null,null,null,false]
[null,null,"概算工事費の算出",null,null,null,null,null,null,null,null,null,null,null,null,null,null,null,null,null,null,null,null,null,null,false]
[null,null,"４Dモデル（３次元モデルに時間情報を付与したモデル）による施工計画の確認",null,null,null,null,null,null,null,null,null,null,null,null,null,null,null,null,null,null,null,null,null,null,false]
[null,null,"複数業務・工事を統合した工程把握及び情報共有",null,null,null,null,null,null,null,null,null,null,null,null,null,null,null,null,null,null,null,null,null,null,false]
[null,null,"その他",null,null,null,null,null,null,null,null,null,null,null,null,null,null,null,null,null,null,null,null,null,null,false]
[null,null,"※「その他」を選択した場合は，具体的な検討項目を記入してください。",null,null,null,null,null,null,null,null,null,null,null,null,null,null,null,null,null,null,null,null,null,null,{"$f":"+C71","v":0},{"$f":"COUNTIF(Z63:Z69,TRUE)","v":0}]
[]
[]
[]
[null,{"$f":"IF(Z60=TRUE,\"回答不要\",IF(AA70=0,\"未回答\",IF(AA70>=8,\"エラー！！※選択は３つまで※\",IF(Z69=FALSE,\"　\",IF(C71=\"\",\"エラー！！※その他の具体的な検討項目を記入してください※\",\"　\")))))","v":"未回答"},null,null,null,null,null,null,null,null,null,null,null,null,null,null,null,null,null,null,null,null,null,null,{"$f":"+IF(B74=\"\",\"回答済\",\"未回答あり\")","v":"未回答あり"}]
["問７",null,"CIMモデルを活用した検討（リクワイヤメント）に要した費用について選択してください。（一択）"]
[null,null,"100万円未満",null,null,null,null,null,null,null,null,null,null,null,null,null,null,null,null,null,null,null,null,null,null,false]
[null,null,"100万円以上～200万円未満",null,null,null,null,null,null,null,null,null,null,null,null,null,null,null,null,null,null,null,null,null,null,false]
[null,null,"200万円以上～300万円未満",null,null,null,null,null,null,null,null,null,null,null,null,null,null,null,null,null,null,null,null,null,null,false]
[null,null,"300万円以上～500万円未満",null,null,null,null,null,null,null,null,null,null,null,null,null,null,null,null,null,null,null,null,null,null,false]
[null,null,"500万円以上～1,000万円未満",null,null,null,null,null,null,null,null,null,null,null,null,null,null,null,null,null,null,null,null,null,null,false]
[null,null,"1,000万円以上～2,000万円未満",null,null,null,null,null,null,null,null,null,null,null,null,null,null,null,null,null,null,null,null,null,null,false]
[null,null,"2,000万円以上",null,null,null,null,null,null,null,null,null,null,null,null,null,null,null,null,null,null,null,null,null,null,false]
[null,{"$f":"IF(Z60=TRUE,\"回答不要\",IF(AA83=0,\"未回答\",IF(AA83>=2,\"エラー！！※選択は１つまで※\",IF(Z83=FALSE,\"　\",IF(C80=\"\",\"エラー！！※その他の具体的な検討項目を記入してください※\",\"　\")))))","v":"未回答"},null,null,null,null,null,null,null,null,null,null,null,null,null,null,null,null,null,null,null,null,null,null,{"$f":"+IF(B83=\"\",\"回答済\",\"未回答あり\")","v":"未回答あり"},null,{"$f":"COUNTIF(Z76:Z82,TRUE)","v":0}]
["問８",null,"CIMモデル作成の際に使用した地形データについて選択してください。（複数回答可）"]
[null,null,"当該業務において３次元測量を実施したデータを使用",null,null,null,null,null,null,null,null,null,null,null,"→問９へ",null,null,null,null,null,null,null,null,null,null,false]
[null,null,"既存業務において取得した３次元データを使用",null,null,null,null,null,null,null,null,null,null,null,"→問１０へ",null,null,null,null,null,null,null,null,null,null,false]
[null,null,"既存業務において取得した２次元データを基に作成",null,null,null,null,null,null,null,null,null,null,null,"→問１０へ",null,null,null,null,null,null,null,null,null,null,false]
[null,null,"国土地理院データを使用",null,null,null,null,null,null,null,null,null,null,null,"→問１０へ",null,null,null,null,null,null,null,null,null,null,false]
[null,null,"広島県インフラマネジメント基盤（DoboX）からダウンロードしたデータを使用",null,null,null,null,null,null,null,null,null,null,null,null,null,null,null,"→問１０へ",null,null,null,null,null,null,false]
[null,null,"その他",null,null,"→問１０へ",null,null,null,null,null,null,null,null,null,null,null,null,null,null,null,null,null,null,null,false]
[null,null,"※「その他」を選択した場合は，具体的な内容を記入してください。",null,null,null,null,null,null,null,null,null,null,null,null,null,null,null,null,null,null,null,null,null,null,{"$f":"+C92","v":0},{"$f":"COUNTIF(Z74:Z90,TRUE)","v":0}]
[]
[]
[]
[null,{"$f":"IF(AA91=0,\"未回答\",IF(AA91>=8,\"エラー！！※選択は３つまで※\",IF(Z90=FALSE,\"　\",IF(C92=\"\",\"エラー！！※その他の具体的な内容を記入してください※\",\"　\"))))","v":"未回答"},null,null,null,null,null,null,null,null,null,null,null,null,null,null,null,null,null,null,null,null,null,null,{"$f":"+IF(B95=\"\",\"回答済\",IF(B95=\"回答不要\",\"回答済\",\"未回答あり\"))","v":"未回答あり"}]
["問９",null,"問８で「当該業務において３次元測量を実施した」際に要した費用について選択してください。（一択）"]
[null,null,"100万円未満",null,null,null,null,null,null,null,null,null,null,null,null,null,null,null,null,null,null,null,null,null,null,false]
[null,null,"100万円以上～200万円未満",null,null,null,null,null,null,null,null,null,null,null,null,null,null,null,null,null,null,null,null,null,null,false]
[null,null,"200万円以上～300万円未満",null,null,null,null,null,null,null,null,null,null,null,null,null,null,null,null,null,null,null,null,null,null,false]
[null,null,"300万円以上～500万円未満",null,null,null,null,null,null,null,null,null,null,null,null,null,null,null,null,null,null,null,null,null,null,false]
[null,null,"500万円以上～1,000万円未満",null,null,null,null,null,null,null,null,null,null,null,null,null,null,null,null,null,null,null,null,null,null,false]
[null,null,"1,000万円以上～2,000万円未満",null,null,null,null,null,null,null,null,null,null,null,null,null,null,null,null,null,null,null,null,null,null,false]
[null,null,"2,000万円以上",null,null,null,null,null,null,null,null,null,null,null,null,null,null,null,null,null,null,null,null,null,null,false]
[null,{"$f":"IF(AA104=0,\"未回答\",IF(AA104>=2,\"エラー！！※選択は１つまで※\",\"\"))","v":"未回答"},null,null,null,null,null,null,null,null,null,null,null,null,null,null,null,null,null,null,null,null,null,null,{"$f":"+IF(B104=\"\",\"回答済\",IF(B104=\"回答不要\",\"回答済\",\"未回答あり\"))","v":"未回答あり"},null,{"$f":"COUNTIF(Z97:Z103,TRUE)","v":0}]
["問９",null,"CIMモデル作成に関して，最も苦労した点を記入してください。"]
[null,null,null,null,null,null,null,null,null,null,null,null,null,null,null,null,null,null,null,null,null,null,null,null,null,{"$f":"IF(C106=\"\",FALSE,TRUE)","v":false}]
[]
[]
[]
[]
[]
[]
[null,{"$f":"IF(AA113=0,\"未回答\",IF(AA113>=2,\"エラー！！※選択は１つまで※\",\"\"))","v":"未回答"},null,null,null,null,null,null,null,null,null,null,null,null,null,null,null,null,null,null,null,null,null,null,{"$f":"+IF(B113=\"\",\"回答済\",IF(B113=\"回答不要\",\"回答済\",\"未回答あり\"))","v":"未回答あり"},null,{"$f":"COUNTIF(Z106:Z112,TRUE)","v":0}]
["問１０",null,"ＣＩＭモデル作成にあたり，発注者に対して意見があれば記入してください。"]
[null,null,null,null,null,null,null,null,null,null,null,null,null,null,null,null,null,null,null,null,null,null,null,null,null,{"$f":"IF(C115=\"\",FALSE,TRUE)","v":false}]
[]
[]
[]
[]
[]
[]
[null,{"$f":"IF(AA122=0,\"未回答\",IF(AA122>=2,\"エラー！！※選択は１つまで※\",\"\"))","v":"未回答"},null,null,null,null,null,null,null,null,null,null,null,null,null,null,null,null,null,null,null,null,null,null,{"$f":"+IF(B122=\"\",\"回答済\",IF(B122=\"回答不要\",\"回答済\",\"未回答あり\"))","v":"未回答あり"},null,{"$f":"COUNTIF(Z115:Z121,TRUE)","v":0}]
["アンケート調査は以上です。ご協力ありがとうございました。"]
["ご記入いただいたアンケートは，メールで「建設ＤＸ担当」に提出してください。"]

{"sheet":"集計表","index":1,"n_rows":246,"n_cols":3,"rows_kept":246,"cut":false,"hidden":true,"merged":[]}
["集計表　受注者用"]
["施工者情報","会社名",{"$f":"+アンケート!G16","v":0}]
["工事情報","施行番号",{"$f":"+アンケート!G23","v":0}]
[{"$f":"+アンケート!A43","v":"問３"},{"$f":"+アンケート!C43","v":"作成したデータモデル（CIMモデル）について選択してください。（複数回答可）"}]
[null,{"$f":"+アンケート!C44","v":"地形モデル"},{"$f":"+アンケート!Z44","v":false}]
[null,{"$f":"+アンケート!C45","v":"土工形状モデル"},{"$f":"+アンケート!Z45","v":false}]
[null,{"$f":"+アンケート!C46","v":"構造物モデル"},{"$f":"+アンケート!Z46","v":false}]
[{"$f":"+アンケート!A62","v":"問６"},{"$f":"+アンケート!C62","v":"CIMモデルを活用した検討（リクワイヤメント）の実施項目を選択してください。（複数回答可）"}]
[null,{"$f":"+アンケート!C63","v":"設計選択肢の調査（配置計画案の比較）"},{"$f":"+アンケート!Z63","v":false}]
[null,{"$f":"+アンケート!C64","v":"リスクに関するシミュレーション（地質，騒音，浸水等）"},{"$f":"+アンケート!Z64","v":false}]
[null,{"$f":"+アンケート!C65","v":"対外説明（関係者協議，住民説明，広報等）"},{"$f":"+アンケート!Z65","v":false}]
[null,{"$f":"+アンケート!C66","v":"概算工事費の算出"},{"$f":"+アンケート!Z66","v":false}]
[null,{"$f":"+アンケート!C67","v":"４Dモデル（３次元モデルに時間情報を付与したモデル）による施工計画の確認"},{"$f":"+アンケート!Z67","v":false}]
[null,{"$f":"+アンケート!C68","v":"複数業務・工事を統合した工程把握及び情報共有"},{"$f":"+アンケート!Z68","v":false}]
[null,{"$f":"+アンケート!#REF!","v":{"$error":"#REF!"}},{"$f":"+アンケート!#REF!","v":{"$error":"#REF!"}}]
[null,{"$f":"+アンケート!#REF!","v":{"$error":"#REF!"}},{"$f":"+アンケート!#REF!","v":{"$error":"#REF!"}}]
[null,{"$f":"+アンケート!#REF!","v":{"$error":"#REF!"}},{"$f":"+アンケート!#REF!","v":{"$error":"#REF!"}}]
[null,{"$f":"+アンケート!#REF!","v":{"$error":"#REF!"}},{"$f":"+アンケート!#REF!","v":{"$error":"#REF!"}}]
[null,{"$f":"+アンケート!C69","v":"その他"},{"$f":"+アンケート!Z69","v":false}]
[null,{"$f":"+アンケート!C70","v":"※「その他」を選択した場合は，具体的な検討項目を記入してください。"},{"$f":"+アンケート!Z70","v":0}]
[{"$f":"+アンケート!A84","v":"問８"},{"$f":"+アンケート!C84","v":"CIMモデル作成の際に使用した地形データについて選択してください。（複数回答可）"}]
[null,{"$f":"+アンケート!C85","v":"当該業務において３次元測量を実施したデータを使用"},{"$f":"+アンケート!Z85","v":false}]
[null,{"$f":"+アンケート!C89","v":"広島県インフラマネジメント基盤（DoboX）からダウンロードしたデータを使用"},{"$f":"+アンケート!Z89","v":false}]
[null,{"$f":"+アンケート!C90","v":"その他"},{"$f":"+アンケート!Z90","v":false}]
[{"$f":"+アンケート!A96","v":"問９"},{"$f":"+アンケート!C96","v":"問８で「当該業務において３次元測量を実施した」際に要した費用について選択してください。（一択）"}]
[{"$f":"+アンケート!#REF!","v":{"$error":"#REF!"}},{"$f":"+アンケート!#REF!","v":{"$error":"#REF!"}}]
[null,{"$f":"+アンケート!D97","v":0},{"$f":"+アンケート!Z97","v":false}]
[null,{"$f":"+アンケート!D98","v":0},{"$f":"+アンケート!Z98","v":false}]
[null,{"$f":"+アンケート!D99","v":0},{"$f":"+アンケート!Z99","v":false}]
[null,{"$f":"+アンケート!D100","v":0},{"$f":"+アンケート!Z100","v":false}]
[null,{"$f":"+アンケート!D101","v":0},{"$f":"+アンケート!Z101","v":false}]
[null,{"$f":"+アンケート!D102","v":0},{"$f":"+アンケート!Z102","v":false}]
[null,{"$f":"+アンケート!D103","v":0},{"$f":"+アンケート!Z103","v":false}]
[{"$f":"+アンケート!#REF!","v":{"$error":"#REF!"}},{"$f":"+アンケート!#REF!","v":{"$error":"#REF!"}}]
[null,{"$f":"+アンケート!#REF!","v":{"$error":"#REF!"}},{"$f":"+アンケート!#REF!","v":{"$error":"#REF!"}}]
[null,{"$f":"+アンケート!#REF!","v":{"$error":"#REF!"}},{"$f":"+アンケート!#REF!","v":{"$error":"#REF!"}}]
[null,{"$f":"+アンケート!#REF!","v":{"$error":"#REF!"}},{"$f":"+アンケート!#REF!","v":{"$error":"#REF!"}}]
[null,{"$f":"+アンケート!#REF!","v":{"$error":"#REF!"}},{"$f":"+アンケート!#REF!","v":{"$error":"#REF!"}}]
[null,{"$f":"+アンケート!#REF!","v":{"$error":"#REF!"}},{"$f":"+アンケート!#REF!","v":{"$error":"#REF!"}}]
[null,{"$f":"+アンケート!#REF!","v":{"$error":"#REF!"}},{"$f":"+アンケート!#REF!","v":{"$error":"#REF!"}}]
[null,{"$f":"+アンケート!#REF!","v":{"$error":"#REF!"}},{"$f":"+アンケート!#REF!","v":{"$error":"#REF!"}}]
[{"$f":"+アンケート!#REF!","v":{"$error":"#REF!"}},{"$f":"+アンケート!#REF!","v":{"$error":"#REF!"}}]
[null,{"$f":"+アンケート!#REF!","v":{"$error":"#REF!"}},{"$f":"+アンケート!#REF!","v":{"$error":"#REF!"}}]
[null,{"$f":"+アンケート!#REF!","v":{"$error":"#REF!"}},{"$f":"+アンケート!#REF!","v":{"$error":"#REF!"}}]
[null,{"$f":"+アンケート!#REF!","v":{"$error":"#REF!"}},{"$f":"+アンケート!#REF!","v":{"$error":"#REF!"}}]
[null,{"$f":"+アンケート!#REF!","v":{"$error":"#REF!"}},{"$f":"+アンケート!#REF!","v":{"$error":"#REF!"}}]
[null,{"$f":"+アンケート!#REF!","v":{"$error":"#REF!"}},{"$f":"+アンケート!#REF!","v":{"$error":"#REF!"}}]
[null,{"$f":"+アンケート!#REF!","v":{"$error":"#REF!"}},{"$f":"+アンケート!#REF!","v":{"$error":"#REF!"}}]
[{"$f":"+アンケート!#REF!","v":{"$error":"#REF!"}},{"$f":"+アンケート!#REF!","v":{"$error":"#REF!"}}]
[{"$f":"+アンケート!#REF!","v":{"$error":"#REF!"}},{"$f":"+アンケート!#REF!","v":{"$error":"#REF!"}}]
[null,{"$f":"+アンケート!#REF!","v":{"$error":"#REF!"}}]
[null,{"$f":"+アンケート!#REF!","v":{"$error":"#REF!"}},{"$f":"+アンケート!#REF!","v":{"$error":"#REF!"}}]
[null,{"$f":"+アンケート!#REF!","v":{"$error":"#REF!"}},{"$f":"+アンケート!#REF!","v":{"$error":"#REF!"}}]
[null,{"$f":"+アンケート!#REF!","v":{"$error":"#REF!"}},{"$f":"+アンケート!#REF!","v":{"$error":"#REF!"}}]
[null,{"$f":"+アンケート!#REF!","v":{"$error":"#REF!"}},{"$f":"+アンケート!#REF!","v":{"$error":"#REF!"}}]
[null,{"$f":"+アンケート!#REF!","v":{"$error":"#REF!"}},{"$f":"+アンケート!#REF!","v":{"$error":"#REF!"}}]
[null,{"$f":"+アンケート!#REF!","v":{"$error":"#REF!"}},{"$f":"+アンケート!#REF!","v":{"$error":"#REF!"}}]
[null,{"$f":"+アンケート!#REF!","v":{"$error":"#REF!"}},{"$f":"+アンケート!#REF!","v":{"$error":"#REF!"}}]
[null,{"$f":"+アンケート!#REF!","v":{"$error":"#REF!"}},{"$f":"+アンケート!#REF!","v":{"$error":"#REF!"}}]
[null,{"$f":"+アンケート!#REF!","v":{"$error":"#REF!"}}]
[null,{"$f":"+アンケート!#REF!","v":{"$error":"#REF!"}},{"$f":"+アンケート!#REF!","v":{"$error":"#REF!"}}]
[null,{"$f":"+アンケート!#REF!","v":{"$error":"#REF!"}},{"$f":"+アンケート!#REF!","v":{"$error":"#REF!"}}]
[null,{"$f":"+アンケート!#REF!","v":{"$error":"#REF!"}},{"$f":"+アンケート!#REF!","v":{"$error":"#REF!"}}]
[null,{"$f":"+アンケート!#REF!","v":{"$error":"#REF!"}},{"$f":"+アンケート!#REF!","v":{"$error":"#REF!"}}]
[null,{"$f":"+アンケート!#REF!","v":{"$error":"#REF!"}}]
[null,{"$f":"+アンケート!#REF!","v":{"$error":"#REF!"}},{"$f":"+アンケート!#REF!","v":{"$error":"#REF!"}}]
[null,{"$f":"+アンケート!#REF!","v":{"$error":"#REF!"}}]
[null,{"$f":"+アンケート!#REF!","v":{"$error":"#REF!"}},{"$f":"+アンケート!#REF!","v":{"$error":"#REF!"}}]
[null,{"$f":"+アンケート!#REF!","v":{"$error":"#REF!"}}]
[null,{"$f":"+アンケート!#REF!","v":{"$error":"#REF!"}},{"$f":"+アンケート!#REF!","v":{"$error":"#REF!"}}]
[null,{"$f":"+アンケート!#REF!","v":{"$error":"#REF!"}},{"$f":"+アンケート!#REF!","v":{"$error":"#REF!"}}]
[{"$f":"+アンケート!#REF!","v":{"$error":"#REF!"}},{"$f":"+アンケート!#REF!","v":{"$error":"#REF!"}}]
[null,{"$f":"+アンケート!#REF!","v":{"$error":"#REF!"}}]
[null,{"$f":"+アンケート!#REF!","v":{"$error":"#REF!"}},{"$f":"+アンケート!#REF!","v":{"$error":"#REF!"}}]
[null,{"$f":"+アンケート!#REF!","v":{"$error":"#REF!"}},{"$f":"+アンケート!#REF!","v":{"$error":"#REF!"}}]
[null,{"$f":"+アンケート!#REF!","v":{"$error":"#REF!"}},{"$f":"+アンケート!#REF!","v":{"$error":"#REF!"}}]
[null,{"$f":"+アンケート!#REF!","v":{"$error":"#REF!"}},{"$f":"+アンケート!#REF!","v":{"$error":"#REF!"}}]
[null,{"$f":"+アンケート!#REF!","v":{"$error":"#REF!"}}]
[null,{"$f":"+アンケート!#REF!","v":{"$error":"#REF!"}},{"$f":"+アンケート!#REF!","v":{"$error":"#REF!"}}]
[null,{"$f":"+アンケート!#REF!","v":{"$error":"#REF!"}}]
[null,{"$f":"+アンケート!#REF!","v":{"$error":"#REF!"}},{"$f":"+アンケート!#REF!","v":{"$error":"#REF!"}}]
[null,{"$f":"+アンケート!#REF!","v":{"$error":"#REF!"}},{"$f":"+アンケート!#REF!","v":{"$error":"#REF!"}}]
[{"$f":"+アンケート!#REF!","v":{"$error":"#REF!"}},{"$f":"+アンケート!#REF!","v":{"$error":"#REF!"}}]
[null,{"$f":"+アンケート!#REF!","v":{"$error":"#REF!"}}]
[null,{"$f":"+アンケート!#REF!","v":{"$error":"#REF!"}},{"$f":"+アンケート!#REF!","v":{"$error":"#REF!"}}]
[null,{"$f":"+アンケート!#REF!","v":{"$error":"#REF!"}},{"$f":"+アンケート!#REF!","v":{"$error":"#REF!"}}]
[null,{"$f":"+アンケート!#REF!","v":{"$error":"#REF!"}}]
[null,{"$f":"+アンケート!#REF!","v":{"$error":"#REF!"}},{"$f":"+アンケート!#REF!","v":{"$error":"#REF!"}}]
[null,{"$f":"+アンケート!#REF!","v":{"$error":"#REF!"}},{"$f":"+アンケート!#REF!","v":{"$error":"#REF!"}}]
[null,{"$f":"+アンケート!#REF!","v":{"$error":"#REF!"}},{"$f":"+アンケート!#REF!","v":{"$error":"#REF!"}}]
[null,{"$f":"+アンケート!#REF!","v":{"$error":"#REF!"}}]
[null,{"$f":"+アンケート!#REF!","v":{"$error":"#REF!"}},{"$f":"+アンケート!#REF!","v":{"$error":"#REF!"}}]
[null,{"$f":"+アンケート!#REF!","v":{"$error":"#REF!"}},{"$f":"+アンケート!#REF!","v":{"$error":"#REF!"}}]
[null,{"$f":"+アンケート!#REF!","v":{"$error":"#REF!"}},{"$f":"+アンケート!#REF!","v":{"$error":"#REF!"}}]
[{"$f":"+アンケート!#REF!","v":{"$error":"#REF!"}},{"$f":"+アンケート!#REF!","v":{"$error":"#REF!"}}]
[null,{"$f":"+アンケート!#REF!","v":{"$error":"#REF!"}}]
[null,{"$f":"+アンケート!#REF!","v":{"$error":"#REF!"}},{"$f":"+アンケート!#REF!","v":{"$error":"#REF!"}}]
[null,{"$f":"+アンケート!#REF!","v":{"$error":"#REF!"}},{"$f":"+アンケート!#REF!","v":{"$error":"#REF!"}}]
[null,{"$f":"+アンケート!#REF!","v":{"$error":"#REF!"}},{"$f":"+アンケート!#REF!","v":{"$error":"#REF!"}}]
[null,{"$f":"+アンケート!#REF!","v":{"$error":"#REF!"}},{"$f":"+アンケート!#REF!","v":{"$error":"#REF!"}}]
[null,{"$f":"+アンケート!#REF!","v":{"$error":"#REF!"}},{"$f":"+アンケート!#REF!","v":{"$error":"#REF!"}}]
[null,{"$f":"+アンケート!#REF!","v":{"$error":"#REF!"}},{"$f":"+アンケート!#REF!","v":{"$error":"#REF!"}}]
[null,{"$f":"+アンケート!#REF!","v":{"$error":"#REF!"}},{"$f":"+アンケート!#REF!","v":{"$error":"#REF!"}}]
[null,{"$f":"+アンケート!#REF!","v":{"$error":"#REF!"}},{"$f":"+アンケート!#REF!","v":{"$error":"#REF!"}}]
[null,{"$f":"+アンケート!#REF!","v":{"$error":"#REF!"}}]
[null,{"$f":"+アンケート!#REF!","v":{"$error":"#REF!"}},{"$f":"+アンケート!#REF!","v":{"$error":"#REF!"}}]
[null,{"$f":"+アンケート!#REF!","v":{"$error":"#REF!"}},{"$f":"+アンケート!#REF!","v":{"$error":"#REF!"}}]
[null,{"$f":"+アンケート!#REF!","v":{"$error":"#REF!"}},{"$f":"+アンケート!#REF!","v":{"$error":"#REF!"}}]
[null,{"$f":"+アンケート!#REF!","v":{"$error":"#REF!"}},{"$f":"+アンケート!#REF!","v":{"$error":"#REF!"}}]
[null,{"$f":"+アンケート!#REF!","v":{"$error":"#REF!"}}]
[null,{"$f":"+アンケート!#REF!","v":{"$error":"#REF!"}},{"$f":"+アンケート!#REF!","v":{"$error":"#REF!"}}]
[null,{"$f":"+アンケート!#REF!","v":{"$error":"#REF!"}}]
[null,{"$f":"+アンケート!#REF!","v":{"$error":"#REF!"}},{"$f":"+アンケート!#REF!","v":{"$error":"#REF!"}}]
[null,{"$f":"+アンケート!#REF!","v":{"$error":"#REF!"}}]
[null,{"$f":"+アンケート!#REF!","v":{"$error":"#REF!"}},{"$f":"+アンケート!#REF!","v":{"$error":"#REF!"}}]
[null,{"$f":"+アンケート!#REF!","v":{"$error":"#REF!"}},{"$f":"+アンケート!#REF!","v":{"$error":"#REF!"}}]
[{"$f":"+アンケート!#REF!","v":{"$error":"#REF!"}},{"$f":"+アンケート!#REF!","v":{"$error":"#REF!"}}]
[{"$f":"+アンケート!#REF!","v":{"$error":"#REF!"}},{"$f":"+アンケート!#REF!","v":{"$error":"#REF!"}}]
[null,{"$f":"+アンケート!#REF!","v":{"$error":"#REF!"}}]
[null,{"$f":"+アンケート!#REF!","v":{"$error":"#REF!"}},{"$f":"+アンケート!#REF!","v":{"$error":"#REF!"}}]
[null,{"$f":"+アンケート!#REF!","v":{"$error":"#REF!"}},{"$f":"+アンケート!#REF!","v":{"$error":"#REF!"}}]
[null,{"$f":"+アンケート!#REF!","v":{"$error":"#REF!"}},{"$f":"+アンケート!#REF!","v":{"$error":"#REF!"}}]
[null,{"$f":"+アンケート!#REF!","v":{"$error":"#REF!"}}]
[null,{"$f":"+アンケート!#REF!","v":{"$error":"#REF!"}},{"$f":"+アンケート!#REF!","v":{"$error":"#REF!"}}]
[null,{"$f":"+アンケート!#REF!","v":{"$error":"#REF!"}},{"$f":"+アンケート!#REF!","v":{"$error":"#REF!"}}]
[null,{"$f":"+アンケート!#REF!","v":{"$error":"#REF!"}},{"$f":"+アンケート!#REF!","v":{"$error":"#REF!"}}]
[null,{"$f":"+アンケート!#REF!","v":{"$error":"#REF!"}}]
[null,{"$f":"+アンケート!#REF!","v":{"$error":"#REF!"}},{"$f":"+アンケート!#REF!","v":{"$error":"#REF!"}}]
[null,{"$f":"+アンケート!#REF!","v":{"$error":"#REF!"}},{"$f":"+アンケート!#REF!","v":{"$error":"#REF!"}}]
[null,{"$f":"+アンケート!#REF!","v":{"$error":"#REF!"}},{"$f":"+アンケート!#REF!","v":{"$error":"#REF!"}}]
[null,{"$f":"+アンケート!#REF!","v":{"$error":"#REF!"}},{"$f":"+アンケート!#REF!","v":{"$error":"#REF!"}}]
[null,{"$f":"+アンケート!#REF!","v":{"$error":"#REF!"}},{"$f":"+アンケート!#REF!","v":{"$error":"#REF!"}}]
[{"$f":"+アンケート!#REF!","v":{"$error":"#REF!"}},{"$f":"+アンケート!#REF!","v":{"$error":"#REF!"}}]
[null,{"$f":"+アンケート!#REF!","v":{"$error":"#REF!"}}]
[null,{"$f":"+アンケート!#REF!","v":{"$error":"#REF!"}},{"$f":"+アンケート!#REF!","v":{"$error":"#REF!"}}]
[null,{"$f":"+アンケート!#REF!","v":{"$error":"#REF!"}},{"$f":"+アンケート!#REF!","v":{"$error":"#REF!"}}]
[null,{"$f":"+アンケート!#REF!","v":{"$error":"#REF!"}},{"$f":"+アンケート!#REF!","v":{"$error":"#REF!"}}]
[null,{"$f":"+アンケート!#REF!","v":{"$error":"#REF!"}}]
[null,{"$f":"+アンケート!#REF!","v":{"$error":"#REF!"}},{"$f":"+アンケート!#REF!","v":{"$error":"#REF!"}}]
[null,{"$f":"+アンケート!#REF!","v":{"$error":"#REF!"}},{"$f":"+アンケート!#REF!","v":{"$error":"#REF!"}}]
[null,{"$f":"+アンケート!#REF!","v":{"$error":"#REF!"}},{"$f":"+アンケート!#REF!","v":{"$error":"#REF!"}}]
[null,{"$f":"+アンケート!#REF!","v":{"$error":"#REF!"}}]
[null,{"$f":"+アンケート!#REF!","v":{"$error":"#REF!"}},{"$f":"+アンケート!#REF!","v":{"$error":"#REF!"}}]
[null,{"$f":"+アンケート!#REF!","v":{"$error":"#REF!"}},{"$f":"+アンケート!#REF!","v":{"$error":"#REF!"}}]
[null,{"$f":"+アンケート!#REF!","v":{"$error":"#REF!"}},{"$f":"+アンケート!#REF!","v":{"$error":"#REF!"}}]
[null,{"$f":"+アンケート!#REF!","v":{"$error":"#REF!"}},{"$f":"+アンケート!#REF!","v":{"$error":"#REF!"}}]
[null,{"$f":"+アンケート!#REF!","v":{"$error":"#REF!"}},{"$f":"+アンケート!#REF!","v":{"$error":"#REF!"}}]
[{"$f":"+アンケート!#REF!","v":{"$error":"#REF!"}},{"$f":"+アンケート!#REF!","v":{"$error":"#REF!"}}]
[null,{"$f":"+アンケート!#REF!","v":{"$error":"#REF!"}}]
[null,{"$f":"+アンケート!#REF!","v":{"$error":"#REF!"}},{"$f":"+アンケート!#REF!","v":{"$error":"#REF!"}}]
[null,{"$f":"+アンケート!#REF!","v":{"$error":"#REF!"}},{"$f":"+アンケート!#REF!","v":{"$error":"#REF!"}}]
[null,{"$f":"+アンケート!#REF!","v":{"$error":"#REF!"}},{"$f":"+アンケート!#REF!","v":{"$error":"#REF!"}}]
[null,{"$f":"+アンケート!#REF!","v":{"$error":"#REF!"}},{"$f":"+アンケート!#REF!","v":{"$error":"#REF!"}}]
[null,{"$f":"+アンケート!#REF!","v":{"$error":"#REF!"}},{"$f":"+アンケート!#REF!","v":{"$error":"#REF!"}}]
[null,{"$f":"+アンケート!#REF!","v":{"$error":"#REF!"}},{"$f":"+アンケート!#REF!","v":{"$error":"#REF!"}}]
[null,{"$f":"+アンケート!#REF!","v":{"$error":"#REF!"}},{"$f":"+アンケート!#REF!","v":{"$error":"#REF!"}}]
[null,{"$f":"+アンケート!#REF!","v":{"$error":"#REF!"}},{"$f":"+アンケート!#REF!","v":{"$error":"#REF!"}}]
[null,{"$f":"+アンケート!#REF!","v":{"$error":"#REF!"}},{"$f":"+アンケート!#REF!","v":{"$error":"#REF!"}}]
[null,{"$f":"+アンケート!#REF!","v":{"$error":"#REF!"}},{"$f":"+アンケート!#REF!","v":{"$error":"#REF!"}}]
[null,{"$f":"+アンケート!#REF!","v":{"$error":"#REF!"}},{"$f":"+アンケート!#REF!","v":{"$error":"#REF!"}}]
[null,{"$f":"+アンケート!#REF!","v":{"$error":"#REF!"}},{"$f":"+アンケート!#REF!","v":{"$error":"#REF!"}}]
[null,{"$f":"+アンケート!#REF!","v":{"$error":"#REF!"}},{"$f":"+アンケート!#REF!","v":{"$error":"#REF!"}}]
[{"$f":"+アンケート!#REF!","v":{"$error":"#REF!"}},{"$f":"+アンケート!#REF!","v":{"$error":"#REF!"}}]
[null,{"$f":"+アンケート!#REF!","v":{"$error":"#REF!"}}]
[null,{"$f":"+アンケート!#REF!","v":{"$error":"#REF!"}},{"$f":"+アンケート!#REF!","v":{"$error":"#REF!"}}]
[null,{"$f":"+アンケート!#REF!","v":{"$error":"#REF!"}},{"$f":"+アンケート!#REF!","v":{"$error":"#REF!"}}]
[null,{"$f":"+アンケート!#REF!","v":{"$error":"#REF!"}},{"$f":"+アンケート!#REF!","v":{"$error":"#REF!"}}]
[null,{"$f":"+アンケート!#REF!","v":{"$error":"#REF!"}}]
[null,{"$f":"+アンケート!#REF!","v":{"$error":"#REF!"}},{"$f":"+アンケート!#REF!","v":{"$error":"#REF!"}}]
[null,{"$f":"+アンケート!#REF!","v":{"$error":"#REF!"}},{"$f":"+アンケート!#REF!","v":{"$error":"#REF!"}}]
[null,{"$f":"+アンケート!#REF!","v":{"$error":"#REF!"}},{"$f":"+アンケート!#REF!","v":{"$error":"#REF!"}}]
[null,{"$f":"+アンケート!#REF!","v":{"$error":"#REF!"}}]
[null,{"$f":"+アンケート!#REF!","v":{"$error":"#REF!"}},{"$f":"+アンケート!#REF!","v":{"$error":"#REF!"}}]
[null,{"$f":"+アンケート!#REF!","v":{"$error":"#REF!"}},{"$f":"+アンケート!#REF!","v":{"$error":"#REF!"}}]
[null,{"$f":"+アンケート!#REF!","v":{"$error":"#REF!"}},{"$f":"+アンケート!#REF!","v":{"$error":"#REF!"}}]
[null,{"$f":"+アンケート!#REF!","v":{"$error":"#REF!"}},{"$f":"+アンケート!#REF!","v":{"$error":"#REF!"}}]
[null,{"$f":"+アンケート!#REF!","v":{"$error":"#REF!"}},{"$f":"+アンケート!#REF!","v":{"$error":"#REF!"}}]
[{"$f":"+アンケート!#REF!","v":{"$error":"#REF!"}},{"$f":"+アンケート!#REF!","v":{"$error":"#REF!"}}]
[null,{"$f":"+アンケート!#REF!","v":{"$error":"#REF!"}}]
[null,{"$f":"+アンケート!#REF!","v":{"$error":"#REF!"}},{"$f":"+アンケート!#REF!","v":{"$error":"#REF!"}}]
[null,{"$f":"+アンケート!#REF!","v":{"$error":"#REF!"}},{"$f":"+アンケート!#REF!","v":{"$error":"#REF!"}}]
[null,{"$f":"+アンケート!#REF!","v":{"$error":"#REF!"}},{"$f":"+アンケート!#REF!","v":{"$error":"#REF!"}}]
[null,{"$f":"+アンケート!#REF!","v":{"$error":"#REF!"}}]
[null,{"$f":"+アンケート!#REF!","v":{"$error":"#REF!"}},{"$f":"+アンケート!#REF!","v":{"$error":"#REF!"}}]
[null,{"$f":"+アンケート!#REF!","v":{"$error":"#REF!"}},{"$f":"+アンケート!#REF!","v":{"$error":"#REF!"}}]
[null,{"$f":"+アンケート!#REF!","v":{"$error":"#REF!"}},{"$f":"+アンケート!#REF!","v":{"$error":"#REF!"}}]
[null,{"$f":"+アンケート!#REF!","v":{"$error":"#REF!"}}]
[null,{"$f":"+アンケート!#REF!","v":{"$error":"#REF!"}},{"$f":"+アンケート!#REF!","v":{"$error":"#REF!"}}]
[null,{"$f":"+アンケート!#REF!","v":{"$error":"#REF!"}},{"$f":"+アンケート!#REF!","v":{"$error":"#REF!"}}]
[null,{"$f":"+アンケート!#REF!","v":{"$error":"#REF!"}},{"$f":"+アンケート!#REF!","v":{"$error":"#REF!"}}]
[null,{"$f":"+アンケート!#REF!","v":{"$error":"#REF!"}},{"$f":"+アンケート!#REF!","v":{"$error":"#REF!"}}]
[null,{"$f":"+アンケート!#REF!","v":{"$error":"#REF!"}},{"$f":"+アンケート!#REF!","v":{"$error":"#REF!"}}]
[{"$f":"+アンケート!#REF!","v":{"$error":"#REF!"}},{"$f":"+アンケート!#REF!","v":{"$error":"#REF!"}}]
[null,{"$f":"+アンケート!#REF!","v":{"$error":"#REF!"}},{"$f":"+アンケート!#REF!","v":{"$error":"#REF!"}}]
[{"$f":"+アンケート!#REF!","v":{"$error":"#REF!"}},{"$f":"+アンケート!#REF!","v":{"$error":"#REF!"}}]
[null,{"$f":"+アンケート!#REF!","v":{"$error":"#REF!"}},{"$f":"+アンケート!#REF!","v":{"$error":"#REF!"}}]
[null,{"$f":"+アンケート!#REF!","v":{"$error":"#REF!"}},{"$f":"+アンケート!#REF!","v":{"$error":"#REF!"}}]
[null,{"$f":"+アンケート!#REF!","v":{"$error":"#REF!"}},{"$f":"+アンケート!#REF!","v":{"$error":"#REF!"}}]
[null,{"$f":"+アンケート!#REF!","v":{"$error":"#REF!"}},{"$f":"+アンケート!#REF!","v":{"$error":"#REF!"}}]
[null,{"$f":"+アンケート!#REF!","v":{"$error":"#REF!"}},{"$f":"+アンケート!#REF!","v":{"$error":"#REF!"}}]
[null,{"$f":"+アンケート!#REF!","v":{"$error":"#REF!"}},{"$f":"+アンケート!#REF!","v":{"$error":"#REF!"}}]
[null,{"$f":"+アンケート!#REF!","v":{"$error":"#REF!"}},{"$f":"+アンケート!#REF!","v":{"$error":"#REF!"}}]
[null,{"$f":"+アンケート!#REF!","v":{"$error":"#REF!"}},{"$f":"+アンケート!#REF!","v":{"$error":"#REF!"}}]
[null,{"$f":"+アンケート!#REF!","v":{"$error":"#REF!"}},{"$f":"+アンケート!#REF!","v":{"$error":"#REF!"}}]
[{"$f":"+アンケート!#REF!","v":{"$error":"#REF!"}},{"$f":"+アンケート!#REF!","v":{"$error":"#REF!"}}]
[null,{"$f":"+アンケート!#REF!","v":{"$error":"#REF!"}},{"$f":"+アンケート!#REF!","v":{"$error":"#REF!"}}]
[null,{"$f":"+アンケート!#REF!","v":{"$error":"#REF!"}},{"$f":"+アンケート!#REF!","v":{"$error":"#REF!"}}]
[null,{"$f":"+アンケート!#REF!","v":{"$error":"#REF!"}},{"$f":"+アンケート!#REF!","v":{"$error":"#REF!"}}]
[{"$f":"+アンケート!#REF!","v":{"$error":"#REF!"}},{"$f":"+アンケート!#REF!","v":{"$error":"#REF!"}}]
[null,{"$f":"+アンケート!#REF!","v":{"$error":"#REF!"}},{"$f":"+アンケート!#REF!","v":{"$error":"#REF!"}}]
[null,{"$f":"+アンケート!#REF!","v":{"$error":"#REF!"}},{"$f":"+アンケート!#REF!","v":{"$error":"#REF!"}}]
[null,{"$f":"+アンケート!#REF!","v":{"$error":"#REF!"}},{"$f":"+アンケート!#REF!","v":{"$error":"#REF!"}}]
[{"$f":"+アンケート!#REF!","v":{"$error":"#REF!"}},{"$f":"+アンケート!#REF!","v":{"$error":"#REF!"}}]
[null,{"$f":"+アンケート!#REF!","v":{"$error":"#REF!"}},{"$f":"+アンケート!#REF!","v":{"$error":"#REF!"}}]
[null,{"$f":"+アンケート!#REF!","v":{"$error":"#REF!"}},{"$f":"+アンケート!#REF!","v":{"$error":"#REF!"}}]
[null,{"$f":"+アンケート!#REF!","v":{"$error":"#REF!"}},{"$f":"+アンケート!#REF!","v":{"$error":"#REF!"}}]
[null,{"$f":"+アンケート!#REF!","v":{"$error":"#REF!"}},{"$f":"+アンケート!#REF!","v":{"$error":"#REF!"}}]
[null,{"$f":"+アンケート!#REF!","v":{"$error":"#REF!"}},{"$f":"+アンケート!#REF!","v":{"$error":"#REF!"}}]
[null,{"$f":"+アンケート!#REF!","v":{"$error":"#REF!"}},{"$f":"+アンケート!#REF!","v":{"$error":"#REF!"}}]
[null,{"$f":"+アンケート!#REF!","v":{"$error":"#REF!"}},{"$f":"+アンケート!#REF!","v":{"$error":"#REF!"}}]
[{"$f":"+アンケート!#REF!","v":{"$error":"#REF!"}},{"$f":"+アンケート!#REF!","v":{"$error":"#REF!"}}]
[null,{"$f":"+アンケート!#REF!","v":{"$error":"#REF!"}},{"$f":"+アンケート!#REF!","v":{"$error":"#REF!"}}]
[null,{"$f":"+アンケート!#REF!","v":{"$error":"#REF!"}},{"$f":"+アンケート!#REF!","v":{"$error":"#REF!"}}]
[null,{"$f":"+アンケート!#REF!","v":{"$error":"#REF!"}},{"$f":"+アンケート!#REF!","v":{"$error":"#REF!"}}]
[null,{"$f":"+アンケート!#REF!","v":{"$error":"#REF!"}},{"$f":"+アンケート!#REF!","v":{"$error":"#REF!"}}]
[null,{"$f":"+アンケート!#REF!","v":{"$error":"#REF!"}},{"$f":"+アンケート!#REF!","v":{"$error":"#REF!"}}]
[null,{"$f":"+アンケート!#REF!","v":{"$error":"#REF!"}},{"$f":"+アンケート!#REF!","v":{"$error":"#REF!"}}]
[null,{"$f":"+アンケート!#REF!","v":{"$error":"#REF!"}},{"$f":"+アンケート!#REF!","v":{"$error":"#REF!"}}]
[{"$f":"+アンケート!#REF!","v":{"$error":"#REF!"}},{"$f":"+アンケート!#REF!","v":{"$error":"#REF!"}}]
[null,{"$f":"+アンケート!#REF!","v":{"$error":"#REF!"}},{"$f":"+アンケート!#REF!","v":{"$error":"#REF!"}}]
[null,{"$f":"+アンケート!#REF!","v":{"$error":"#REF!"}},{"$f":"+アンケート!#REF!","v":{"$error":"#REF!"}}]
[null,{"$f":"+アンケート!#REF!","v":{"$error":"#REF!"}},{"$f":"+アンケート!#REF!","v":{"$error":"#REF!"}}]
[null,{"$f":"+アンケート!#REF!","v":{"$error":"#REF!"}},{"$f":"+アンケート!#REF!","v":{"$error":"#REF!"}}]
[null,{"$f":"+アンケート!#REF!","v":{"$error":"#REF!"}},{"$f":"+アンケート!#REF!","v":{"$error":"#REF!"}}]
[null,{"$f":"+アンケート!#REF!","v":{"$error":"#REF!"}},{"$f":"+アンケート!#REF!","v":{"$error":"#REF!"}}]
[null,{"$f":"+アンケート!#REF!","v":{"$error":"#REF!"}},{"$f":"+アンケート!#REF!","v":{"$error":"#REF!"}}]
[null,{"$f":"+アンケート!#REF!","v":{"$error":"#REF!"}},{"$f":"+アンケート!#REF!","v":{"$error":"#REF!"}}]
[null,{"$f":"+アンケート!#REF!","v":{"$error":"#REF!"}},{"$f":"+アンケート!#REF!","v":{"$error":"#REF!"}}]
[null,{"$f":"+アンケート!#REF!","v":{"$error":"#REF!"}},{"$f":"+アンケート!#REF!","v":{"$error":"#REF!"}}]
[null,{"$f":"+アンケート!#REF!","v":{"$error":"#REF!"}},{"$f":"+アンケート!#REF!","v":{"$error":"#REF!"}}]
[null,{"$f":"+アンケート!#REF!","v":{"$error":"#REF!"}},{"$f":"+アンケート!#REF!","v":{"$error":"#REF!"}}]
[null,{"$f":"+アンケート!#REF!","v":{"$error":"#REF!"}},{"$f":"+アンケート!#REF!","v":{"$error":"#REF!"}}]
[{"$f":"+アンケート!A105","v":"問９"},{"$f":"+アンケート!C105","v":"CIMモデル作成に関して，最も苦労した点を記入してください。"}]
[null,"自由入力",{"$f":"+アンケート!Z106","v":false}]
[{"$f":"+アンケート!A114","v":"問１０"},{"$f":"+アンケート!C114","v":"ＣＩＭモデル作成にあたり，発注者に対して意見があれば記入してください。"}]
[null,"自由入力",{"$f":"+アンケート!Z115","v":false}]

{"sheet":"グラフ計算シート","index":2,"n_rows":16,"n_cols":7,"rows_kept":16,"cut":false,"hidden":true,"merged":[]}
["導入効果"]
["シート：R3.6～"]
["○延べ作業人員"]
[null,"起工測量","３次元設計（測量設計）","施工","出来形管理","電子納品","合計"]
["従来",{"$f":"+アンケート!#REF!","v":{"$error":"#REF!"}},{"$f":"+アンケート!#REF!","v":{"$error":"#REF!"}},{"$f":"+アンケート!#REF!","v":{"$error":"#REF!"}},{"$f":"+アンケート!#REF!","v":{"$error":"#REF!"}},{"$f":"+アンケート!#REF!","v":{"$error":"#REF!"}},{"$f":"+SUM(B5:F5)","v":{"$error":"#REF!"}}]
["ＩＣＴ",{"$f":"+アンケート!#REF!","v":{"$error":"#REF!"}},{"$f":"+アンケート!#REF!","v":{"$error":"#REF!"}},{"$f":"+アンケート!#REF!","v":{"$error":"#REF!"}},{"$f":"+アンケート!#REF!","v":{"$error":"#REF!"}},{"$f":"+アンケート!#REF!","v":{"$error":"#REF!"}},{"$f":"+SUM(B6:F6)","v":{"$error":"#REF!"}}]
[null,{"$f":"(B6-B5)/B5","v":{"$error":"#REF!"}},{"$f":"(C6-C5)/C5","v":{"$error":"#REF!"}},{"$error":"#REF!"},{"$error":"#REF!"},{"$error":"#REF!"},{"$error":"#REF!"}]
[]
[]
[]
[]
["○所要日数"]
[null,"起工測量","３次元設計（測量設計）","施工","出来形管理","電子納品","合計"]
["従来",{"$f":"+アンケート!#REF!","v":{"$error":"#REF!"}},{"$f":"+アンケート!#REF!","v":{"$error":"#REF!"}},{"$f":"+アンケート!#REF!","v":{"$error":"#REF!"}},{"$f":"+アンケート!#REF!","v":{"$error":"#REF!"}},{"$f":"+アンケート!#REF!","v":{"$error":"#REF!"}},{"$f":"+SUM(B14:F14)","v":{"$error":"#REF!"}}]
["ＩＣＴ",{"$f":"+アンケート!#REF!","v":{"$error":"#REF!"}},{"$f":"+アンケート!#REF!","v":{"$error":"#REF!"}},{"$f":"+アンケート!#REF!","v":{"$error":"#REF!"}},{"$f":"+アンケート!#REF!","v":{"$error":"#REF!"}},{"$f":"+アンケート!#REF!","v":{"$error":"#REF!"}},{"$f":"+SUM(B15:F15)","v":{"$error":"#REF!"}}]
["変動",{"$f":"(B15-B14)/B14","v":{"$error":"#REF!"}},{"$f":"(C15-C14)/C14","v":{"$error":"#REF!"}},{"$error":"#REF!"},{"$error":"#REF!"},{"$error":"#REF!"},{"$error":"#REF!"}]